[Event "*** Titled Tuesday 3|2 Blitz"]
[Site "Chess.com"]
[Date "2015.10.06"]
[Round "3"]
[White "gmsakk"]
[Black "Quinten94"]
[Result "0-1"]
[WhiteElo "2471"]
[BlackElo "2329"]
[TimeControl "180+2"]
[EndTime "11:37:06 PDT"]
[Termination "Quinten94 won by resignation"]

1. d4 {[%clk 0:03:01.9]} 1... Nf6 {[%clk 0:03:00.5]} 2. c4 {[%clk 0:03:02.9]}
2... e6 {[%clk 0:03:01.7]} 3. Nc3 {[%clk 0:03:03.9]} 3... Bb4 {[%clk 0:03:02.7]}
4. Nf3 {[%clk 0:03:05.4]} 4... b6 {[%clk 0:03:03.5]} 5. Qc2 {[%clk 0:03:05]}
5... Bb7 {[%clk 0:03:04.5]} 6. a3 {[%clk 0:03:06.3]} 6... Bxc3+ {[%clk
0:02:57.4]} 7. Qxc3 {[%clk 0:03:07.5]} 7... d6 {[%clk 0:02:58.7]} 8. Bg5 {[%clk
0:03:07.9]} 8... h6 {[%clk 0:03:00]} 9. Bh4 {[%clk 0:03:08.8]} 9... g5 {[%clk
0:03:01.3]} 10. Bg3 {[%clk 0:03:09.7]} 10... Ne4 {[%clk 0:03:02.6]} 11. Qc2
{[%clk 0:03:10.7]} 11... Nd7 {[%clk 0:02:53.9]} 12. e3 {[%clk 0:03:08.5]} 12...
h5 {[%clk 0:02:39.9]} 13. h4 {[%clk 0:02:53.7]} 13... Nxg3 {[%clk 0:02:38.7]}
14. fxg3 {[%clk 0:02:55]} 14... g4 {[%clk 0:02:37.8]} 15. Ng5 {[%clk 0:02:54.2]}
15... Qe7 {[%clk 0:02:36.6]} 16. Bd3 {[%clk 0:02:49.3]} 16... O-O-O {[%clk
0:02:30.8]} 17. O-O {[%clk 0:02:41.3]} 17... f6 {[%clk 0:02:27]} 18. Ne4 {[%clk
0:02:42.3]} 18... d5 {[%clk 0:02:24.4]} 19. Nc3 {[%clk 0:02:32.9]} 19... Qd6
{[%clk 0:02:22.3]} 20. Qf2 {[%clk 0:02:24.4]} 20... Kb8 {[%clk 0:02:21.2]} 21.
Rac1 {[%clk 0:02:24.1]} 21... a6 {[%clk 0:02:19.6]} 22. cxd5 {[%clk 0:02:23.5]}
22... exd5 {[%clk 0:02:20.5]} 23. Ne2 {[%clk 0:02:18.8]} 23... Rde8 {[%clk
0:02:20.2]} 24. Nf4 {[%clk 0:02:19.9]} 24... Nf8 {[%clk 0:02:18.9]} 25. Rc3
{[%clk 0:02:17.4]} 25... Rh6 {[%clk 0:01:59]} 26. b4 {[%clk 0:01:51.1]} 26...
Ne6 {[%clk 0:01:59.8]} 27. Ng6 {[%clk 0:01:06.9]} 27... Nf8 {[%clk 0:01:37.1]}
28. Nxf8 {[%clk 0:00:53]} 28... Rxf8 {[%clk 0:01:38.1]} 29. Rfc1 {[%clk
0:00:52.9]} 29... Rf7 {[%clk 0:01:38.7]} 30. Kh2 {[%clk 0:00:34.7]} 30... Re7
{[%clk 0:01:39.6]} 31. Bf5 {[%clk 0:00:34]} 31... Rh8 {[%clk 0:01:37]} 32. Qd2
{[%clk 0:00:24.1]} 32... Rhe8 {[%clk 0:01:36.7]} 33. Bg6 {[%clk 0:00:24.5]}
33... Rh8 {[%clk 0:01:37.9]} 34. Rb3 {[%clk 0:00:19.9]} 34... Rg8 {[%clk
0:01:35.5]} 35. Bf5 {[%clk 0:00:17.9]} 35... Bc6 {[%clk 0:01:32.9]} 36. Rbc3
{[%clk 0:00:18]} 36... Bb7 {[%clk 0:01:30.5]} 37. Qc2 {[%clk 0:00:14.4]} 37...
Rge8 {[%clk 0:01:30.4]} 38. Qf2 {[%clk 0:00:15.3]} 38... Rg8 {[%clk 0:01:22.8]}
39. Bc2 {[%clk 0:00:12.3]} 39... Rge8 {[%clk 0:01:23]} 40. Bg6 {[%clk
0:00:13.3]} 40... Rh8 {[%clk 0:01:20.6]} 41. Qf5 {[%clk 0:00:14.2]} 41... Rh6
{[%clk 0:01:13.8]} 42. Bxh5 {[%clk 0:00:14.1]} 42... Bc8 {[%clk 0:01:15]} 43.
Qf1 {[%clk 0:00:09.5]} 43... Rxh5 {[%clk 0:01:16.4]} 44. Rc6 {[%clk 0:00:11.1]}
44... Rxh4+ {[%clk 0:01:16.1]} 45. Kg1 {[%clk 0:00:12.5]} 45... Qxg3 {[%clk
0:01:17.3]} 46. Qxf6 {[%clk 0:00:14.1]} 46... Qxe3+ {[%clk 0:01:16.2]} 0-1

[Event "*** Titled Tuesday 3|2 Blitz"]
[Site "Chess.com"]
[Date "2015.10.06"]
[Round "3"]
[White "Saitama_Hero"]
[Black "Jahonas"]
[Result "0-1"]
[WhiteElo "2125"]
[BlackElo "2068"]
[TimeControl "180+2"]
[EndTime "11:37:19 PDT"]
[Termination "Jahonas won by resignation"]

1. e4 {[%clk 0:03:01.9]} 1... c6 {[%clk 0:03:01.1]} 2. d4 {[%clk 0:03:02]} 2...
d5 {[%clk 0:03:02.4]} 3. f3 {[%clk 0:03:03.5]} 3... e6 {[%clk 0:03:01.9]} 4. Nc3
{[%clk 0:03:03.6]} 4... Nf6 {[%clk 0:03:02.2]} 5. e5 {[%clk 0:03:02.8]} 5...
Nfd7 {[%clk 0:03:03]} 6. f4 {[%clk 0:03:04.4]} 6... f5 {[%clk 0:02:59.7]} 7.
exf6 {[%clk 0:02:54.6]} 7... Nxf6 {[%clk 0:03:00]} 8. Nf3 {[%clk 0:02:55.6]}
8... Bd6 {[%clk 0:03:01.1]} 9. Bd3 {[%clk 0:02:56.1]} 9... O-O {[%clk
0:03:00.1]} 10. O-O {[%clk 0:02:57.4]} 10... c5 {[%clk 0:02:59.1]} 11. dxc5
{[%clk 0:02:52.3]} 11... Bxc5+ {[%clk 0:02:59.9]} 12. Kh1 {[%clk 0:02:53.9]}
12... Nc6 {[%clk 0:03:00.4]} 13. Ne5 {[%clk 0:02:51.1]} 13... Bd7 {[%clk
0:02:57.9]} 14. Qe2 {[%clk 0:02:46.7]} 14... Qe7 {[%clk 0:02:25.9]} 15. Bd2
{[%clk 0:02:33.8]} 15... Nb4 {[%clk 0:02:18.3]} 16. Rae1 {[%clk 0:02:16.7]}
16... Rae8 {[%clk 0:02:16.2]} 17. Nxd7 {[%clk 0:01:36.7]} 17... Nxd7 {[%clk
0:02:02.5]} 18. Bb5 {[%clk 0:01:26.9]} 18... a6 {[%clk 0:01:59]} 19. Ba4 {[%clk
0:01:24.7]} 19... b5 {[%clk 0:01:52.9]} 20. Bb3 {[%clk 0:01:26]} 20... Nb6
{[%clk 0:01:40.6]} 21. Qg4 {[%clk 0:01:16.1]} 21... Qf7 {[%clk 0:01:33.6]} 22.
Re2 {[%clk 0:01:05.2]} 22... Nc4 {[%clk 0:01:31.4]} 23. Bc1 {[%clk 0:01:03.3]}
23... Nc6 {[%clk 0:01:26.5]} 24. Bxc4 {[%clk 0:00:48.6]} 24... bxc4 {[%clk
0:01:09.5]} 25. Na4 {[%clk 0:00:50]} 25... Ba7 {[%clk 0:00:57.9]} 26. c3 {[%clk
0:00:51]} 26... e5 {[%clk 0:00:54.3]} 27. f5 {[%clk 0:00:49.6]} 27... e4 {[%clk
0:00:51.3]} 28. f6 {[%clk 0:00:47.2]} 28... Ne5 {[%clk 0:00:46.9]} 29. Qg3
{[%clk 0:00:44.5]} 29... Nd3 {[%clk 0:00:42.5]} 30. Bh6 {[%clk 0:00:43.6]} 30...
Qg6 {[%clk 0:00:37.3]} 31. Qxg6 {[%clk 0:00:42.3]} 31... hxg6 {[%clk 0:00:35.4]}
32. Bxg7 {[%clk 0:00:43.9]} 32... Rf7 {[%clk 0:00:30.8]} 33. g4 {[%clk
0:00:33.8]} 33... e3 {[%clk 0:00:25.6]} 34. Kg2 {[%clk 0:00:14.6]} 34... Re4
{[%clk 0:00:25.9]} 35. h3 {[%clk 0:00:14.2]} 35... Nf4+ {[%clk 0:00:25.7]} 36.
Rxf4 {[%clk 0:00:15.7]} 36... Rxf4 {[%clk 0:00:27.6]} 37. Bh6 {[%clk 0:00:16.3]}
37... R4xf6 {[%clk 0:00:26.5]} 38. Bxe3 {[%clk 0:00:18.2]} 38... Re6 {[%clk
0:00:27]} 39. Bxa7 {[%clk 0:00:15.6]} 39... Rxe2+ {[%clk 0:00:28.1]} 0-1

[Event "*** Titled Tuesday 3|2 Blitz"]
[Site "Chess.com"]
[Date "2015.10.06"]
[Round "3"]
[White "GGuseinov"]
[Black "kikydu96"]
[Result "1-0"]
[WhiteElo "2491"]
[BlackElo "2273"]
[TimeControl "180+2"]
[EndTime "11:37:45 PDT"]
[Termination "GGuseinov won by resignation"]

1. e4 {[%clk 0:01:45.6]} 1... e5 {[%clk 0:03:00]} 2. Nf3 {[%clk 0:01:46.5]} 2...
Nc6 {[%clk 0:03:01]} 3. Bb5 {[%clk 0:01:47.3]} 3... a6 {[%clk 0:03:02.3]} 4.
Bxc6 {[%clk 0:01:47.9]} 4... dxc6 {[%clk 0:03:02.4]} 5. O-O {[%clk 0:01:49.5]}
5... f6 {[%clk 0:03:03.8]} 6. d4 {[%clk 0:01:50.2]} 6... exd4 {[%clk 0:03:05.4]}
7. Nxd4 {[%clk 0:01:51.7]} 7... c5 {[%clk 0:03:07.1]} 8. Nb3 {[%clk 0:01:52.3]}
8... Qxd1 {[%clk 0:03:08]} 9. Rxd1 {[%clk 0:01:54.2]} 9... Bg4 {[%clk
0:03:07.2]} 10. f3 {[%clk 0:01:55.1]} 10... Bd7 {[%clk 0:03:08]} 11. Bf4 {[%clk
0:01:56.1]} 11... O-O-O {[%clk 0:03:08.3]} 12. Nc3 {[%clk 0:01:57]} 12... c4
{[%clk 0:02:58.4]} 13. Na5 {[%clk 0:01:33.5]} 13... Bc5+ {[%clk 0:02:51]} 14.
Kh1 {[%clk 0:01:31.6]} 14... b5 {[%clk 0:02:29.7]} 15. a4 {[%clk 0:01:31.1]}
15... Ne7 {[%clk 0:02:07.5]} 16. axb5 {[%clk 0:01:22.9]} 16... axb5 {[%clk
0:02:08.7]} 17. b3 {[%clk 0:01:22.3]} 17... Bb4 {[%clk 0:01:59.4]} 18. Ne2
{[%clk 0:01:07.6]} 18... Be6 {[%clk 0:01:40.2]} 19. Rdb1 {[%clk 0:00:56.9]}
19... c3 {[%clk 0:01:27.5]} 20. Be3 {[%clk 0:00:49.1]} 20... Rd6 {[%clk
0:01:19.2]} 21. Nd4 {[%clk 0:00:34.1]} 21... Bd7 {[%clk 0:01:12.9]} 22. Nc4
{[%clk 0:00:29.7]} 22... bxc4 {[%clk 0:01:01.2]} 23. Ra8+ {[%clk 0:00:27.8]}
23... Kb7 {[%clk 0:01:02.2]} 24. Rxh8 {[%clk 0:00:29.4]} 24... c5 {[%clk
0:00:58.9]} 25. bxc4 {[%clk 0:00:24.3]} 25... Kc7 {[%clk 0:00:58.8]} 26. Nb3
{[%clk 0:00:22.7]} 26... Ba4 {[%clk 0:00:55.5]} 27. h4 {[%clk 0:00:09.7]} 27...
h6 {[%clk 0:00:53.1]} 28. Bf4 {[%clk 0:00:10.7]} 28... Ng6 {[%clk 0:00:43.5]}
29. Bxd6+ {[%clk 0:00:11.2]} 29... Kxd6 {[%clk 0:00:45.1]} 30. Rd8+ {[%clk
0:00:12.2]} 30... Ke7 {[%clk 0:00:41.7]} 31. Ra8 {[%clk 0:00:13]} 31... Bc6
{[%clk 0:00:41.7]} 32. Ra7+ {[%clk 0:00:13.5]} 32... Ke6 {[%clk 0:00:39]} 33.
Ra6 {[%clk 0:00:12.4]} 33... Kd7 {[%clk 0:00:40.2]} 34. Rd1+ {[%clk 0:00:11]}
34... Kc7 {[%clk 0:00:41.7]} 35. Ra7+ {[%clk 0:00:12.4]} 35... Kb6 {[%clk
0:00:42.2]} 36. Rxg7 {[%clk 0:00:13.2]} 36... Nxh4 {[%clk 0:00:43]} 37. Rd6
{[%clk 0:00:13.3]} 37... f5 {[%clk 0:00:32.2]} 38. Rxh6 {[%clk 0:00:13.2]} 38...
fxe4 {[%clk 0:00:32.3]} 39. fxe4 {[%clk 0:00:14.5]} 39... Ba3 {[%clk 0:00:18.8]}
40. Rxh4 {[%clk 0:00:15]} 40... Bc1 {[%clk 0:00:20.2]} 41. Rg6 {[%clk
0:00:15.8]} 41... Bh6 {[%clk 0:00:20.4]} 42. Rhxh6 {[%clk 0:00:16.2]} 1-0

[Event "*** Titled Tuesday 3|2 Blitz"]
[Site "Chess.com"]
[Date "2015.10.06"]
[Round "3"]
[White "stefanodinn"]
[Black "StellarChessPro"]
[Result "0-1"]
[WhiteElo "2111"]
[BlackElo "2231"]
[TimeControl "180+2"]
[EndTime "11:37:45 PDT"]
[Termination "StellarChessPro won on time"]

1. e4 {[%clk 0:03:00.2]} 1... c6 {[%clk 0:02:54.1]} 2. d4 {[%clk 0:03:00.1]}
2... d5 {[%clk 0:02:55.2]} 3. Nd2 {[%clk 0:03:00.8]} 3... dxe4 {[%clk
0:02:56.3]} 4. Nxe4 {[%clk 0:03:01.6]} 4... Bf5 {[%clk 0:02:58.2]} 5. Ng3 {[%clk
0:03:02]} 5... Bg6 {[%clk 0:02:59.4]} 6. h4 {[%clk 0:03:02.7]} 6... h6 {[%clk
0:03:00.2]} 7. Nf3 {[%clk 0:03:03.2]} 7... Nd7 {[%clk 0:02:46.6]} 8. h5 {[%clk
0:03:02.3]} 8... Bh7 {[%clk 0:02:47.7]} 9. Bd3 {[%clk 0:03:03.2]} 9... Bxd3
{[%clk 0:02:48.3]} 10. Qxd3 {[%clk 0:03:04.1]} 10... e6 {[%clk 0:02:50.2]} 11.
Bd2 {[%clk 0:03:03.8]} 11... Ngf6 {[%clk 0:02:50.9]} 12. O-O-O {[%clk 0:03:04]}
12... Qc7 {[%clk 0:02:50.8]} 13. Ne4 {[%clk 0:03:03.3]} 13... Nxe4 {[%clk
0:02:51.2]} 14. Qxe4 {[%clk 0:03:03.6]} 14... O-O-O {[%clk 0:02:53.1]} 15. Bf4
{[%clk 0:02:54.5]} 15... Bd6 {[%clk 0:02:53.9]} 16. Bxd6 {[%clk 0:02:46.9]}
16... Qxd6 {[%clk 0:02:55.8]} 17. Qg4 {[%clk 0:02:31.7]} 17... Rhg8 {[%clk
0:02:56.2]} 18. Qe4 {[%clk 0:02:24.1]} 18... Kb8 {[%clk 0:02:56.9]} 19. Kb1
{[%clk 0:02:21]} 19... a6 {[%clk 0:02:57.3]} 20. c4 {[%clk 0:02:18.8]} 20... Ka7
{[%clk 0:02:58.1]} 21. Qe3 {[%clk 0:02:14.5]} 21... Ka8 {[%clk 0:02:58.8]} 22.
g4 {[%clk 0:01:58.4]} 22... Rge8 {[%clk 0:02:55.2]} 23. Rd3 {[%clk 0:01:23.6]}
23... Qc7 {[%clk 0:02:35.5]} 24. Rhd1 {[%clk 0:01:22.3]} 24... Nf6 {[%clk
0:02:36.5]} 25. Ne5 {[%clk 0:01:21.2]} 25... Re7 {[%clk 0:02:36.3]} 26. f4
{[%clk 0:01:18.7]} 26... Nd7 {[%clk 0:02:37.3]} 27. Qd2 {[%clk 0:00:51.5]} 27...
Kb8 {[%clk 0:02:35.6]} 28. Qc3 {[%clk 0:00:48.1]} 28... Ka8 {[%clk 0:02:34.5]}
29. Qd2 {[%clk 0:00:45.7]} 29... Kb8 {[%clk 0:02:35.4]} 30. Qe3 {[%clk
0:00:46.2]} 30... Ka8 {[%clk 0:02:32.5]} 31. Qf3 {[%clk 0:00:41]} 31... Kb8
{[%clk 0:02:33.2]} 32. g5 {[%clk 0:00:34]} 32... hxg5 {[%clk 0:02:32.1]} 33.
Nxd7+ {[%clk 0:00:33.1]} 33... Rexd7 {[%clk 0:02:29.1]} 34. fxg5 {[%clk
0:00:33.9]} 34... e5 {[%clk 0:02:28.1]} 35. d5 {[%clk 0:00:22]} 35... cxd5
{[%clk 0:02:29.2]} 36. cxd5 {[%clk 0:00:22.4]} 36... Qd6 {[%clk 0:02:28.7]} 37.
Qe4 {[%clk 0:00:16.8]} 37... Rh8 {[%clk 0:02:26.8]} 38. Rh1 {[%clk 0:00:16]}
38... Re7 {[%clk 0:02:25.7]} 39. Rf3 {[%clk 0:00:15.1]} 39... Rd7 {[%clk
0:02:24.4]} 40. Rd3 {[%clk 0:00:15.9]} 40... Ka8 {[%clk 0:02:24.7]} 41. a3
{[%clk 0:00:15.6]} 41... f6 {[%clk 0:02:19.9]} 42. Qf5 {[%clk 0:00:14]} 42...
fxg5 {[%clk 0:02:18]} 43. Qxg5 {[%clk 0:00:14.2]} 43... Qf6 {[%clk 0:02:17]} 44.
Qxf6 {[%clk 0:00:13.2]} 44... gxf6 {[%clk 0:02:18.9]} 45. Rf3 {[%clk 0:00:11.8]}
45... Rdh7 {[%clk 0:02:18.5]} 46. Rxf6 {[%clk 0:00:11.3]} 46... Rxh5 {[%clk
0:02:19.7]} 47. Rxh5 {[%clk 0:00:11.7]} 47... Rxh5 {[%clk 0:02:21.6]} 48. Kc2
{[%clk 0:00:12.1]} 48... Kb8 {[%clk 0:02:18.3]} 49. Rf7 {[%clk 0:00:11.2]} 49...
Kc8 {[%clk 0:02:18]} 50. Kc3 {[%clk 0:00:10.7]} 50... Rh2 {[%clk 0:02:14.6]} 51.
Re7 {[%clk 0:00:09.7]} 51... Rh3+ {[%clk 0:02:13.7]} 52. Kc4 {[%clk 0:00:09.8]}
52... Rh2 {[%clk 0:02:13.2]} 53. b4 {[%clk 0:00:08.3]} 53... Re2 {[%clk
0:02:13.5]} 54. d6 {[%clk 0:00:08.6]} 54... e4 {[%clk 0:02:08.2]} 55. Kd5 {[%clk
0:00:06.5]} 55... e3 {[%clk 0:02:01.3]} 56. Ke6 {[%clk 0:00:07.2]} 56... Kb8
{[%clk 0:01:57.2]} 57. Re8+ {[%clk 0:00:07.8]} 57... Ka7 {[%clk 0:01:57.1]} 58.
d7 {[%clk 0:00:08.7]} 58... Rd2 {[%clk 0:01:58.3]} 59. d8=Q {[%clk 0:00:02.8]}
59... Rxd8 {[%clk 0:01:59.2]} 60. Rxd8 {[%clk 0:00:03]} 60... e2 {[%clk
0:02:01.1]} 0-1

[Event "*** Titled Tuesday 3|2 Blitz"]
[Site "Chess.com"]
[Date "2015.10.06"]
[Round "3"]
[White "ChessTrener"]
[Black "LADIESGET2KNOWME"]
[Result "1-0"]
[WhiteElo "2484"]
[BlackElo "2255"]
[TimeControl "180+2"]
[EndTime "11:37:52 PDT"]
[Termination "ChessTrener won on time"]

1. e4 {[%clk 0:02:57.9]} 1... e6 {[%clk 0:03:01.1]} 2. d4 {[%clk 0:02:57.4]}
2... d5 {[%clk 0:03:03]} 3. Nc3 {[%clk 0:02:58.2]} 3... Nf6 {[%clk 0:03:04.3]}
4. Bg5 {[%clk 0:02:58.7]} 4... Be7 {[%clk 0:03:05.3]} 5. e5 {[%clk 0:02:59.8]}
5... Nfd7 {[%clk 0:03:06.7]} 6. Bxe7 {[%clk 0:03:01.7]} 6... Qxe7 {[%clk
0:03:08.6]} 7. Qd2 {[%clk 0:03:03.6]} 7... a6 {[%clk 0:03:09.3]} 8. Nd1 {[%clk
0:03:04.3]} 8... c5 {[%clk 0:03:10.4]} 9. c3 {[%clk 0:03:05.4]} 9... Nc6 {[%clk
0:03:11.9]} 10. f4 {[%clk 0:03:07]} 10... O-O {[%clk 0:03:01.4]} 11. Nf3 {[%clk
0:03:07.9]} 11... f6 {[%clk 0:03:02.7]} 12. Nf2 {[%clk 0:03:08.3]} 12... cxd4
{[%clk 0:02:37.2]} 13. cxd4 {[%clk 0:03:08.6]} 13... Nb6 {[%clk 0:02:31.4]} 14.
Rc1 {[%clk 0:03:06]} 14... Bd7 {[%clk 0:02:12.4]} 15. Be2 {[%clk 0:03:04.7]}
15... Be8 {[%clk 0:02:01.5]} 16. exf6 {[%clk 0:02:59.3]} 16... Qxf6 {[%clk
0:02:01.2]} 17. g3 {[%clk 0:02:57]} 17... Bh5 {[%clk 0:01:59.8]} 18. Ne5 {[%clk
0:02:33.8]} 18... Bxe2 {[%clk 0:01:59.9]} 19. Kxe2 {[%clk 0:02:35.7]} 19... Rad8
{[%clk 0:01:41.5]} 20. b3 {[%clk 0:02:15.9]} 20... Nxe5 {[%clk 0:01:35.3]} 21.
dxe5 {[%clk 0:02:15.5]} 21... Qe7 {[%clk 0:01:28.6]} 22. Qd4 {[%clk 0:02:14.5]}
22... Na8 {[%clk 0:00:59.8]} 23. Rc2 {[%clk 0:02:12.4]} 23... Nc7 {[%clk
0:00:48.9]} 24. a4 {[%clk 0:02:09.9]} 24... a5 {[%clk 0:00:43]} 25. Rhc1 {[%clk
0:02:09.4]} 25... Na6 {[%clk 0:00:43.4]} 26. Nd3 {[%clk 0:02:11]} 26... g5
{[%clk 0:00:39.8]} 27. Qe3 {[%clk 0:01:48.9]} 27... gxf4 {[%clk 0:00:36.3]} 28.
gxf4 {[%clk 0:01:47.9]} 28... Kh8 {[%clk 0:00:36.7]} 29. Rg1 {[%clk 0:01:43.9]}
29... Rg8 {[%clk 0:00:34.3]} 30. Rg3 {[%clk 0:01:41.4]} 30... Qh4 {[%clk
0:00:27.8]} 31. Qf2 {[%clk 0:01:39.4]} 31... Qh5+ {[%clk 0:00:26.3]} 32. Kd2
{[%clk 0:01:32.8]} 32... d4 {[%clk 0:00:09.4]} 33. Rc4 {[%clk 0:01:21]} 33...
Nb4 {[%clk 0:00:07.6]} 34. Nxb4 {[%clk 0:01:19.3]} 34... axb4 {[%clk 0:00:09.5]}
35. Rxb4 {[%clk 0:01:18]} 35... d3 {[%clk 0:00:10.4]} 36. Rxg8+ {[%clk
0:01:06.7]} 36... Kxg8 {[%clk 0:00:10.1]} 37. Rxb7 {[%clk 0:00:54.9]} 37... Kh8
{[%clk 0:00:11.5]} 38. a5 {[%clk 0:00:49]} 38... Qh6 {[%clk 0:00:08.6]} 39. a6
{[%clk 0:00:43.5]} 39... Rf8 {[%clk 0:00:08.5]} 40. Kxd3 {[%clk 0:00:37.2]}
40... Rxf4 {[%clk 0:00:08.8]} 41. Rb8+ {[%clk 0:00:38.2]} 41... Kg7 {[%clk
0:00:07.4]} 42. Qg3+ {[%clk 0:00:38]} 1-0

[Event "*** Titled Tuesday 3|2 Blitz"]
[Site "Chess.com"]
[Date "2015.10.06"]
[Round "3"]
[White "AlexanderL"]
[Black "Dlugy"]
[Result "1/2-1/2"]
[WhiteElo "2552"]
[BlackElo "2557"]
[TimeControl "180+2"]
[EndTime "11:37:54 PDT"]
[Termination "Game drawn by agreement"]

1. Nf3 {[%clk 0:03:01.9]} 1... Nf6 {[%clk 0:03:00.4]} 2. c4 {[%clk 0:03:00.6]}
2... g6 {[%clk 0:03:01.5]} 3. d4 {[%clk 0:03:01.1]} 3... Bg7 {[%clk 0:03:03.2]}
4. Nc3 {[%clk 0:03:01.5]} 4... d6 {[%clk 0:03:04.9]} 5. e4 {[%clk 0:03:01.8]}
5... O-O {[%clk 0:03:06.5]} 6. Be2 {[%clk 0:03:00.7]} 6... e5 {[%clk 0:03:07.4]}
7. O-O {[%clk 0:02:54.7]} 7... exd4 {[%clk 0:03:08]} 8. Nxd4 {[%clk 0:02:55.9]}
8... Re8 {[%clk 0:03:09.7]} 9. f3 {[%clk 0:02:56.2]} 9... c6 {[%clk 0:03:11.3]}
10. Bf4 {[%clk 0:02:56.4]} 10... Nh5 {[%clk 0:03:12.4]} 11. Be3 {[%clk
0:02:57.3]} 11... f5 {[%clk 0:03:13.4]} 12. Qd2 {[%clk 0:02:58.5]} 12... f4
{[%clk 0:03:14.2]} 13. Bf2 {[%clk 0:02:59.4]} 13... Be5 {[%clk 0:03:15]} 14.
Rfd1 {[%clk 0:02:58.3]} 14... Na6 {[%clk 0:03:15.6]} 15. Nb3 {[%clk 0:02:53]}
15... Qf6 {[%clk 0:03:14.9]} 16. c5 {[%clk 0:02:53.7]} 16... Nxc5 {[%clk
0:03:13.5]} 17. Nxc5 {[%clk 0:02:51.3]} 17... dxc5 {[%clk 0:03:14.7]} 18. Bxc5
{[%clk 0:02:52.3]} 18... Be6 {[%clk 0:03:15.5]} 19. Qe1 {[%clk 0:02:44.4]} 19...
b6 {[%clk 0:02:59.8]} 20. Bf2 {[%clk 0:02:44.1]} 20... Rad8 {[%clk 0:02:59.9]}
21. Rxd8 {[%clk 0:02:38.3]} 21... Rxd8 {[%clk 0:03:00.6]} 22. Rd1 {[%clk
0:02:39.3]} 22... Ng7 {[%clk 0:02:56.1]} 23. Rxd8+ {[%clk 0:02:31.3]} 23... Qxd8
{[%clk 0:02:56.3]} 24. Qc1 {[%clk 0:02:30.8]} 24... Qd6 {[%clk 0:02:51]} 25. a3
{[%clk 0:02:28.7]} 25... Bb3 {[%clk 0:02:47.5]} 26. Nb1 {[%clk 0:02:26.4]} 26...
Ne6 {[%clk 0:02:44.4]} 27. Nd2 {[%clk 0:02:23.7]} 27... Nd4 {[%clk 0:02:33.6]}
28. Bf1 {[%clk 0:02:15.2]} 28... Kg7 {[%clk 0:02:11.2]} 29. Nxb3 {[%clk
0:02:03.2]} 29... Nxb3 {[%clk 0:02:12.1]} 30. Qc2 {[%clk 0:02:03.3]} 30... Nd4
{[%clk 0:02:09.2]} 31. Qa4 {[%clk 0:02:01]} 31... a5 {[%clk 0:02:05.9]} 32. Qd1
{[%clk 0:01:48.3]} 32... b5 {[%clk 0:01:57.2]} 33. g3 {[%clk 0:01:36.8]} 33...
g5 {[%clk 0:01:53]} 34. gxf4 {[%clk 0:01:36.2]} 34... gxf4 {[%clk 0:01:53.5]}
35. Kh1 {[%clk 0:01:37]} 35... a4 {[%clk 0:01:48.4]} 36. Bh3 {[%clk 0:01:27]}
36... Kf7 {[%clk 0:01:37.3]} 37. Bg4 {[%clk 0:01:22.5]} 37... Nf5 {[%clk
0:01:13.1]} 38. Qxd6 {[%clk 0:00:39.8]} 38... Nxd6 {[%clk 0:01:13.6]} 39. Bd7
{[%clk 0:00:40.7]} 39... Bxb2 {[%clk 0:01:08.7]} 40. Bxc6 {[%clk 0:00:40.3]}
40... Bxa3 {[%clk 0:00:53.3]} 41. e5 {[%clk 0:00:41.1]} 41... Nc4 {[%clk
0:00:53.6]} 42. Bxb5 {[%clk 0:00:38.6]} 42... Nxe5 {[%clk 0:00:52.2]} 43. Kg2
{[%clk 0:00:36.6]} 43... Be7 {[%clk 0:00:44.6]} 44. Bxa4 {[%clk 0:00:36]} 44...
Ng6 {[%clk 0:00:41.3]} 45. Bc2 {[%clk 0:00:35.2]} 45... Nh4+ {[%clk 0:00:39.9]}
46. Bxh4 {[%clk 0:00:34.8]} 46... Bxh4 {[%clk 0:00:40.6]} 47. Kh3 {[%clk
0:00:35.3]} 47... Bf2 {[%clk 0:00:39.3]} 48. Bxh7 {[%clk 0:00:26.5]} 48... Be3
{[%clk 0:00:40.2]} 49. Kg4 {[%clk 0:00:27.4]} 49... Kg7 {[%clk 0:00:41.5]} 50.
Bd3 {[%clk 0:00:25.5]} 50... Kh6 {[%clk 0:00:42.9]} 51. Kh4 {[%clk 0:00:20.7]}
51... Bc1 {[%clk 0:00:44.8]} 52. Kg4 {[%clk 0:00:21.8]} 52... Be3 {[%clk
0:00:46.7]} 53. h4 {[%clk 0:00:20.6]} 1/2-1/2